[Event "*** SCC Grand Prix: Titled Tuesday Blitz"]
[Site "Chess.com"]
[Date "2020.10.06"]
[Round "5"]
[White "burbur555"]
[Black "Pultis"]
[Result "0-1"]
[WhiteElo "2582"]
[BlackElo "2754"]
[TimeControl "180+1"]
[EndTime "10:58:25 PDT"]
[Termination "Pultis won on time"]

1. d4 {[%clk 0:03:00.9]} 1... Nf6 {[%clk 0:02:59.8]} 2. Nf3 {[%clk 0:03:00.8]}
2... g6 {[%clk 0:02:59.6]} 3. Bf4 {[%clk 0:02:59.8]} 3... Bg7 {[%clk 0:02:58.9]}
4. e3 {[%clk 0:03:00.3]} 4... O-O {[%clk 0:02:59.1]} 5. Be2 {[%clk 0:02:59.2]}
5... d6 {[%clk 0:02:57.1]} 6. O-O {[%clk 0:02:57]} 6... Nbd7 {[%clk 0:02:57]} 7.
h3 {[%clk 0:02:56.4]} 7... Qe8 {[%clk 0:02:56.7]} 8. Bh2 {[%clk 0:02:55.4]} 8...
e5 {[%clk 0:02:57]} 9. c3 {[%clk 0:02:54.9]} 9... Qe7 {[%clk 0:02:56.7]} 10. a4
{[%clk 0:02:51.1]} 10... a6 {[%clk 0:02:48.5]} 11. a5 {[%clk 0:02:50.6]} 11...
Re8 {[%clk 0:02:42.2]} 12. Na3 {[%clk 0:02:49.2]} 12... Ne4 {[%clk 0:02:38.6]}
13. Nc4 {[%clk 0:02:47.5]} 13... Kh8 {[%clk 0:02:21.7]} 14. Qc2 {[%clk
0:02:21.5]} 14... f5 {[%clk 0:02:20.8]} 15. Rad1 {[%clk 0:02:18.2]} 15... exd4
{[%clk 0:02:13.1]} 16. cxd4 {[%clk 0:01:57]} 16... Ndf6 {[%clk 0:02:13.1]} 17.
Nfd2 {[%clk 0:01:36.7]} 17... Be6 {[%clk 0:02:05.2]} 18. Nxe4 {[%clk 0:01:34]}
18... Nxe4 {[%clk 0:02:06.1]} 19. Nd2 {[%clk 0:01:28.7]} 19... Nf6 {[%clk
0:02:06.2]} 20. Bf3 {[%clk 0:01:23.5]} 20... Rab8 {[%clk 0:01:52.1]} 21. Nb1
{[%clk 0:01:19.9]} 21... Qf7 {[%clk 0:01:50.6]} 22. Rc1 {[%clk 0:01:17.8]} 22...
Rec8 {[%clk 0:01:50.6]} 23. Qa4 {[%clk 0:01:09.6]} 23... Bb3 {[%clk 0:01:25.9]}
24. Qb4 {[%clk 0:01:07.8]} 24... Be6 {[%clk 0:01:17.4]} 25. Nc3 {[%clk
0:01:06.7]} 25... Bc4 {[%clk 0:01:02.6]} 26. Rfd1 {[%clk 0:01:04]} 26... b5
{[%clk 0:01:03.2]} 27. d5 {[%clk 0:00:26.2]} 27... g5 {[%clk 0:00:49.9]} 28. b3
{[%clk 0:00:26.2]} 28... g4 {[%clk 0:00:50.4]} 29. bxc4 {[%clk 0:00:26.1]} 29...
gxf3 {[%clk 0:00:45.9]} 30. gxf3 {[%clk 0:00:26.3]} 30... Qh5 {[%clk 0:00:43.6]}
31. Kg2 {[%clk 0:00:24.7]} 31... Rg8 {[%clk 0:00:41.6]} 32. Bg3 {[%clk
0:00:24.2]} 32... Nd7 {[%clk 0:00:25.2]} 33. cxb5 {[%clk 0:00:23.2]} 33... Nf8
{[%clk 0:00:14.9]} 34. f4 {[%clk 0:00:21.4]} 34... Ng6 {[%clk 0:00:14.7]} 35.
Qc4 {[%clk 0:00:18]} 35... Nh4+ {[%clk 0:00:13.7]} 36. Kh2 {[%clk 0:00:17]}
36... Nf3+ {[%clk 0:00:14.1]} 37. Kg2 {[%clk 0:00:17.2]} 37... Nh4+ {[%clk
0:00:14.4]} 38. Kh2 {[%clk 0:00:17.4]} 38... axb5 {[%clk 0:00:14.1]} 39. Qe2
{[%clk 0:00:16.3]} 39... Nf3+ {[%clk 0:00:12]} 40. Kg2 {[%clk 0:00:15.9]} 40...
Bxc3 {[%clk 0:00:10.8]} 41. Qxf3 {[%clk 0:00:15.2]} 41... Qxf3+ {[%clk
0:00:10.5]} 42. Kxf3 {[%clk 0:00:15.3]} 42... Bxa5 {[%clk 0:00:11.4]} 43. Ra1
{[%clk 0:00:12.8]} 43... Bb6 {[%clk 0:00:10.6]} 44. Rab1 {[%clk 0:00:12.6]}
44... Bc5 {[%clk 0:00:10.4]} 45. Bh4 {[%clk 0:00:11.4]} 45... Kg7 {[%clk
0:00:10.5]} 46. Rg1+ {[%clk 0:00:09.3]} 46... Kf7 {[%clk 0:00:10.8]} 47. Rxg8
{[%clk 0:00:08.7]} 47... Rxg8 {[%clk 0:00:11.3]} 48. Rxb5 {[%clk 0:00:07.6]}
48... Bb6 {[%clk 0:00:10.5]} 49. Bg3 {[%clk 0:00:05.8]} 49... Ra8 {[%clk
0:00:10.2]} 50. Rb3 {[%clk 0:00:05.4]} 50... Ra4 {[%clk 0:00:09.4]} 51. Rd3
{[%clk 0:00:05.6]} 51... Ke8 {[%clk 0:00:07.5]} 52. Ke2 {[%clk 0:00:05.8]} 52...
Kd7 {[%clk 0:00:07.4]} 53. Kf3 {[%clk 0:00:06.1]} 53... Ra2 {[%clk 0:00:07.3]}
54. Bh4 {[%clk 0:00:06.1]} 54... Ra1 {[%clk 0:00:05.7]} 55. Bg3 {[%clk
0:00:05.7]} 55... Rh1 {[%clk 0:00:05.6]} 56. h4 {[%clk 0:00:05.3]} 56... Rc1
{[%clk 0:00:05.6]} 57. e4 {[%clk 0:00:05.2]} 57... fxe4+ {[%clk 0:00:05.3]} 58.
Kxe4 {[%clk 0:00:05.4]} 58... Ke7 {[%clk 0:00:04.4]} 59. Kf5 {[%clk 0:00:05.3]}
59... Kf7 {[%clk 0:00:04.8]} 60. Kg5 {[%clk 0:00:05.5]} 60... Rc5 {[%clk
0:00:04.8]} 61. Kh6 {[%clk 0:00:04.3]} 61... Kg8 {[%clk 0:00:04.1]} 62. f5
{[%clk 0:00:04]} 62... Rc4 {[%clk 0:00:04]} 63. f6 {[%clk 0:00:02.9]} 63... Rg4
{[%clk 0:00:03.9]} 64. h5 {[%clk 0:00:02.8]} 64... Bd4 {[%clk 0:00:03.1]} 0-1

[Event "*** SCC Grand Prix: Titled Tuesday Blitz"]
[Site "Chess.com"]
[Date "2020.10.06"]
[Round "5"]
[White "Aleksey_Sorokin"]
[Black "blitzking1729"]
[Result "1-0"]
[WhiteElo "2819"]
[BlackElo "2540"]
[TimeControl "180+1"]
[EndTime "10:58:31 PDT"]
[Termination "Aleksey_Sorokin won by checkmate"]

1. d4 {[%clk 0:03:00.9]} 1... d5 {[%clk 0:02:54.5]} 2. c4 {[%clk 0:03:00.6]}
2... e6 {[%clk 0:02:54.3]} 3. Nf3 {[%clk 0:03:01]} 3... c5 {[%clk 0:02:54.6]} 4.
cxd5 {[%clk 0:03:00.6]} 4... exd5 {[%clk 0:02:55.5]} 5. g3 {[%clk 0:03:01]} 5...
Nc6 {[%clk 0:02:55.9]} 6. Bg2 {[%clk 0:03:01]} 6... Nf6 {[%clk 0:02:56.3]} 7.
O-O {[%clk 0:03:01.1]} 7... Be7 {[%clk 0:02:56.6]} 8. Nc3 {[%clk 0:03:00]} 8...
O-O {[%clk 0:02:56.7]} 9. dxc5 {[%clk 0:03:00.3]} 9... Bxc5 {[%clk 0:02:56.4]}
10. a3 {[%clk 0:03:00.8]} 10... a6 {[%clk 0:02:56]} 11. b4 {[%clk 0:03:00.2]}
11... Ba7 {[%clk 0:02:56.5]} 12. Bg5 {[%clk 0:02:58.9]} 12... Be6 {[%clk
0:02:47.9]} 13. Bxf6 {[%clk 0:02:58.9]} 13... Qxf6 {[%clk 0:02:48.8]} 14. Nxd5
{[%clk 0:02:58.6]} 14... Bxd5 {[%clk 0:02:47.4]} 15. Qxd5 {[%clk 0:02:59.5]}
15... Rad8 {[%clk 0:02:48.2]} 16. Qg5 {[%clk 0:02:59.4]} 16... Nd4 {[%clk
0:02:39.1]} 17. Qxf6 {[%clk 0:02:46.2]} 17... Nxe2+ {[%clk 0:02:38.6]} 18. Kh1
{[%clk 0:02:46.8]} 18... gxf6 {[%clk 0:02:39.1]} 19. Rae1 {[%clk 0:02:42.1]}
19... Rfe8 {[%clk 0:02:38.7]} 20. Nh4 {[%clk 0:02:38]} 20... b5 {[%clk 0:02:28]}
21. Bb7 {[%clk 0:02:34.3]} 21... Bxf2 {[%clk 0:02:19.3]} 22. Rxf2 {[%clk
0:02:28.4]} 22... Nxg3+ {[%clk 0:02:17.8]} 23. hxg3 {[%clk 0:02:29.3]} 23...
Rxe1+ {[%clk 0:02:18.2]} 24. Kg2 {[%clk 0:02:28.8]} 24... Re6 {[%clk 0:02:16.4]}
25. Nf5 {[%clk 0:02:25.4]} 25... Rd3 {[%clk 0:02:08.7]} 26. Rc2 {[%clk
0:02:20.8]} 26... h5 {[%clk 0:02:08.1]} 27. Rc7 {[%clk 0:02:12.7]} 27... h4
{[%clk 0:01:50.3]} 28. Nxh4 {[%clk 0:01:59.1]} 28... Rxa3 {[%clk 0:01:43]} 29.
Bd5 {[%clk 0:01:55.5]} 29... Re2+ {[%clk 0:01:36.1]} 30. Kh3 {[%clk 0:01:54.1]}
30... Kf8 {[%clk 0:01:28.6]} 31. Rxf7+ {[%clk 0:01:48.5]} 31... Ke8 {[%clk
0:01:28.2]} 32. Rxf6 {[%clk 0:01:32.1]} 32... Ree3 {[%clk 0:01:21.9]} 33. Nf5
{[%clk 0:01:28.9]} 33... Re5 {[%clk 0:01:08.1]} 34. Bc6+ {[%clk 0:01:20.1]}
34... Kd8 {[%clk 0:01:07.6]} 35. Rf7 {[%clk 0:01:17.5]} 35... Rd3 {[%clk
0:00:42.8]} 36. Kg4 {[%clk 0:01:16.2]} 36... Re6 {[%clk 0:00:31.1]} 37. Bg2
{[%clk 0:00:52.9]} 37... Re1 {[%clk 0:00:18.1]} 38. Ra7 {[%clk 0:00:45.8]} 38...
Rb1 {[%clk 0:00:17.1]} 39. Rxa6 {[%clk 0:00:44.1]} 39... Rxb4+ {[%clk
0:00:17.3]} 40. Kg5 {[%clk 0:00:44.4]} 40... Ra4 {[%clk 0:00:17.4]} 41. Rb6
{[%clk 0:00:43]} 41... Raa3 {[%clk 0:00:16.5]} 42. g4 {[%clk 0:00:41.3]} 42...
Rab3 {[%clk 0:00:13.2]} 43. Bf1 {[%clk 0:00:36.3]} 43... Rd5 {[%clk 0:00:10.5]}
44. Rb7 {[%clk 0:00:29.5]} 44... Kc8 {[%clk 0:00:10]} 45. Rh7 {[%clk 0:00:27.4]}
45... Rd2 {[%clk 0:00:10.2]} 46. Kf6 {[%clk 0:00:23.9]} 46... Rf2 {[%clk
0:00:09.5]} 47. Rh1 {[%clk 0:00:13.7]} 47... Rbf3 {[%clk 0:00:08.8]} 48. Bxb5
{[%clk 0:00:11.9]} 48... Rf4 {[%clk 0:00:08.4]} 49. Rg1 {[%clk 0:00:11.6]} 49...
Kc7 {[%clk 0:00:07.1]} 50. Be8 {[%clk 0:00:11.5]} 50... Kc8 {[%clk 0:00:06.8]}
51. Bg6 {[%clk 0:00:11.6]} 51... Kd8 {[%clk 0:00:06.6]} 52. g5 {[%clk
0:00:11.9]} 52... Kd7 {[%clk 0:00:06.4]} 53. Kg7 {[%clk 0:00:12.2]} 53... Rxf5
{[%clk 0:00:05.8]} 54. Bxf5+ {[%clk 0:00:12.1]} 54... Rxf5 {[%clk 0:00:06.7]}
55. g6 {[%clk 0:00:12.6]} 55... Rf2 {[%clk 0:00:03]} 56. Re1 {[%clk 0:00:12.6]}
56... Rf3 {[%clk 0:00:02.2]} 57. Kg8 {[%clk 0:00:12.6]} 57... Kd6 {[%clk
0:00:02.7]} 58. g7 {[%clk 0:00:12.9]} 58... Rf2 {[%clk 0:00:03]} 59. Rh1 {[%clk
0:00:11.5]} 59... Ke7 {[%clk 0:00:02.2]} 60. Kh8 {[%clk 0:00:11.7]} 60... Rg2
{[%clk 0:00:02]} 61. g8=Q {[%clk 0:00:11.8]} 61... Rxg8+ {[%clk 0:00:02.1]} 62.
Kxg8 {[%clk 0:00:12.7]} 62... Ke6 {[%clk 0:00:01.9]} 63. Rf1 {[%clk 0:00:13.1]}
63... Kd5 {[%clk 0:00:02.8]} 64. Kf7 {[%clk 0:00:13.4]} 64... Kd4 {[%clk
0:00:03.7]} 65. Ke6 {[%clk 0:00:13.7]} 65... Kd3 {[%clk 0:00:04.6]} 66. Ke5
{[%clk 0:00:13.9]} 66... Kd2 {[%clk 0:00:05.5]} 67. Rf3 {[%clk 0:00:14]} 67...
Kc2 {[%clk 0:00:05.8]} 68. Rh3 {[%clk 0:00:14.8]} 68... Kd2 {[%clk 0:00:06.7]}
69. Ke4 {[%clk 0:00:15.1]} 69... Kc2 {[%clk 0:00:07.6]} 70. Kd4 {[%clk
0:00:15.2]} 70... Kb2 {[%clk 0:00:08.5]} 71. Kc4 {[%clk 0:00:15.6]} 71... Kc2
{[%clk 0:00:09.4]} 72. Rh2+ {[%clk 0:00:15.6]} 72... Kd1 {[%clk 0:00:09.6]} 73.
Kd3 {[%clk 0:00:15.5]} 73... Ke1 {[%clk 0:00:10.5]} 74. Ra2 {[%clk 0:00:15.4]}
74... Kf1 {[%clk 0:00:11.1]} 75. Ke3 {[%clk 0:00:15.7]} 75... Kg1 {[%clk
0:00:11.2]} 76. Kf3 {[%clk 0:00:16.1]} 76... Kf1 {[%clk 0:00:11.4]} 77. Ra1#
{[%clk 0:00:16]} 1-0

[Event "*** SCC Grand Prix: Titled Tuesday Blitz"]
[Site "Chess.com"]
[Date "2020.10.06"]
[Round "5"]
[White "MikeSailer"]
[Black "JuliaEfremova"]
[Result "1/2-1/2"]
[WhiteElo "2082"]
[BlackElo "2324"]
[TimeControl "180+1"]
[EndTime "10:58:33 PDT"]
[Termination "Game drawn by stalemate"]

1. d4 {[%clk 0:03:00.3]} 1... Nf6 {[%clk 0:02:58.3]} 2. Bf4 {[%clk 0:02:59]}
2... g6 {[%clk 0:02:53.2]} 3. e3 {[%clk 0:02:59.4]} 3... Bg7 {[%clk 0:02:50.8]}
4. Nf3 {[%clk 0:03:00.1]} 4... c5 {[%clk 0:02:47.3]} 5. c3 {[%clk 0:02:56.6]}
5... b6 {[%clk 0:02:46.6]} 6. Be2 {[%clk 0:02:56.6]} 6... Bb7 {[%clk 0:02:43.5]}
7. h3 {[%clk 0:02:56.7]} 7... O-O {[%clk 0:02:39]} 8. O-O {[%clk 0:02:56.5]}
8... d5 {[%clk 0:02:39.2]} 9. Nbd2 {[%clk 0:02:53.2]} 9... Nc6 {[%clk
0:02:38.9]} 10. Ne5 {[%clk 0:02:53.4]} 10... Nd7 {[%clk 0:02:35]} 11. Nxc6
{[%clk 0:02:44.1]} 11... Bxc6 {[%clk 0:02:33.9]} 12. Nf3 {[%clk 0:02:43.6]}
12... f6 {[%clk 0:02:32.3]} 13. b4 {[%clk 0:02:27.6]} 13... e5 {[%clk
0:02:15.7]} 14. dxe5 {[%clk 0:02:12.1]} 14... fxe5 {[%clk 0:02:16.6]} 15. Bg5
{[%clk 0:02:12.3]} 15... Bf6 {[%clk 0:02:09.9]} 16. Bxf6 {[%clk 0:02:10.1]}
16... Qxf6 {[%clk 0:02:10.8]} 17. bxc5 {[%clk 0:01:57.9]} 17... bxc5 {[%clk
0:02:02.3]} 18. Nh2 {[%clk 0:01:55.2]} 18... e4 {[%clk 0:01:46.7]} 19. Rb1
{[%clk 0:01:40.9]} 19... Ne5 {[%clk 0:01:44.5]} 20. Ng4 {[%clk 0:01:28]} 20...
Nxg4 {[%clk 0:01:41.3]} 21. Bxg4 {[%clk 0:01:28.1]} 21... Rad8 {[%clk
0:01:42.1]} 22. Qc1 {[%clk 0:01:08.8]} 22... Bd7 {[%clk 0:01:39.6]} 23. Bxd7
{[%clk 0:01:08.5]} 23... Rxd7 {[%clk 0:01:40]} 24. Qa3 {[%clk 0:01:08.7]} 24...
Qc6 {[%clk 0:01:30.9]} 25. Qa5 {[%clk 0:01:02.9]} 25... Rdf7 {[%clk 0:01:25.7]}
26. Qb5 {[%clk 0:01:01.8]} 26... Qd6 {[%clk 0:01:19.7]} 27. a4 {[%clk
0:00:53.4]} 27... d4 {[%clk 0:01:17.9]} 28. cxd4 {[%clk 0:00:53.4]} 28... cxd4
{[%clk 0:01:18.8]} 29. exd4 {[%clk 0:00:49.2]} 29... Qxd4 {[%clk 0:01:19.7]} 30.
Qb3 {[%clk 0:00:41.6]} 30... Kg7 {[%clk 0:01:02.7]} 31. Qb2 {[%clk 0:00:41.9]}
31... Qxb2 {[%clk 0:01:00]} 32. Rxb2 {[%clk 0:00:42.5]} 32... e3 {[%clk
0:01:00.6]} 33. f3 {[%clk 0:00:40.7]} 33... Re7 {[%clk 0:00:53.1]} 34. Rfb1
{[%clk 0:00:36.2]} 34... Rd8 {[%clk 0:00:48.9]} 35. Kf1 {[%clk 0:00:31.5]} 35...
Kf6 {[%clk 0:00:42]} 36. Ke2 {[%clk 0:00:29]} 36... Rd4 {[%clk 0:00:41.2]} 37.
Rd1 {[%clk 0:00:18.8]} 37... Rxa4 {[%clk 0:00:40.3]} 38. Rd3 {[%clk 0:00:17]}
38... Ra1 {[%clk 0:00:32.2]} 39. Rxe3 {[%clk 0:00:17]} 39... Rxe3+ {[%clk
0:00:32.1]} 40. Kxe3 {[%clk 0:00:17.5]} 40... a5 {[%clk 0:00:33]} 41. Rb6+
{[%clk 0:00:16.3]} 41... Kg5 {[%clk 0:00:31.9]} 42. Kf2 {[%clk 0:00:14.2]} 42...
a4 {[%clk 0:00:30.8]} 43. Kg3 {[%clk 0:00:12.6]} 43... Kf5 {[%clk 0:00:29]} 44.
Rb5+ {[%clk 0:00:12.3]} 44... Ke6 {[%clk 0:00:29]} 45. Kg4 {[%clk 0:00:12.5]}
45... a3 {[%clk 0:00:29.2]} 46. Ra5 {[%clk 0:00:12.7]} 46... Kd6 {[%clk
0:00:28.6]} 47. g3 {[%clk 0:00:12.4]} 47... h6 {[%clk 0:00:27.6]} 48. Ra6+
{[%clk 0:00:12.2]} 48... Kc5 {[%clk 0:00:27.7]} 49. Rxg6 {[%clk 0:00:06.3]}
49... a2 {[%clk 0:00:28.6]} 50. Ra6 {[%clk 0:00:06]} 50... Kb5 {[%clk
0:00:29.2]} 51. Ra8 {[%clk 0:00:06.4]} 51... Kb6 {[%clk 0:00:29.5]} 52. Kh5
{[%clk 0:00:05.7]} 52... Kb7 {[%clk 0:00:27.5]} 53. Ra3 {[%clk 0:00:05.3]} 53...
Kb6 {[%clk 0:00:27.9]} 54. Kxh6 {[%clk 0:00:05.5]} 54... Kb5 {[%clk 0:00:28.8]}
55. Kg5 {[%clk 0:00:05.6]} 55... Kb4 {[%clk 0:00:29.7]} 56. Ra8 {[%clk 0:00:06]}
56... Kb3 {[%clk 0:00:30]} 57. Kg4 {[%clk 0:00:06.4]} 57... Rc1 {[%clk
0:00:28.5]} 58. h4 {[%clk 0:00:05.6]} 58... a1=Q {[%clk 0:00:28.3]} 59. Rxa1
{[%clk 0:00:05.6]} 59... Rxa1 {[%clk 0:00:29.2]} 60. f4 {[%clk 0:00:06.3]} 60...
Kc4 {[%clk 0:00:29.9]} 61. Kg5 {[%clk 0:00:06.9]} 61... Kd5 {[%clk 0:00:30.5]}
62. g4 {[%clk 0:00:07.3]} 62... Ke6 {[%clk 0:00:30.7]} 63. f5+ {[%clk
0:00:08.1]} 63... Kf7 {[%clk 0:00:30.9]} 64. h5 {[%clk 0:00:07]} 64... Ra6
{[%clk 0:00:29.4]} 65. Kf4 {[%clk 0:00:06]} 65... Ra4+ {[%clk 0:00:27.7]} 66.
Kg5 {[%clk 0:00:06.4]} 66... Kg7 {[%clk 0:00:26.9]} 67. h6+ {[%clk 0:00:06.6]}
67... Kh7 {[%clk 0:00:27.2]} 68. Kh5 {[%clk 0:00:07.2]} 68... Rf4 {[%clk
0:00:26.1]} 69. Kg5 {[%clk 0:00:06.5]} 69... Rxg4+ {[%clk 0:00:21.6]} 70. Kxg4
{[%clk 0:00:06.7]} 70... Kxh6 {[%clk 0:00:22.5]} 71. Kf4 {[%clk 0:00:06.9]}
71... Kg7 {[%clk 0:00:22.2]} 72. Ke5 {[%clk 0:00:07.7]} 72... Kf7 {[%clk
0:00:22.4]} 73. f6 {[%clk 0:00:07.9]} 73... Kf8 {[%clk 0:00:22.8]} 74. Ke6
{[%clk 0:00:08.5]} 74... Ke8 {[%clk 0:00:22.9]} 75. f7+ {[%clk 0:00:08.9]} 75...
Kf8 {[%clk 0:00:23.3]} 76. Kf6 {[%clk 0:00:09.7]} 1/2-1/2

[Event "*** SCC Grand Prix: Titled Tuesday Blitz"]
[Site "Chess.com"]
[Date "2020.10.06"]
[Round "5"]
[White "dopolian"]
[Black "SophieNikoladze"]
[Result "1-0"]
[WhiteElo "2436"]
[BlackElo "2271"]
[TimeControl "180+1"]
[EndTime "10:58:36 PDT"]
[Termination "dopolian won by resignation"]

1. Nf3 {[%clk 0:03:00.9]} 1... b5 {[%clk 0:02:58.1]} 2. e4 {[%clk 0:03:00]} 2...
Bb7 {[%clk 0:02:57.3]} 3. d3 {[%clk 0:02:52.1]} 3... e6 {[%clk 0:02:55.5]} 4.
Nc3 {[%clk 0:02:49.6]} 4... a6 {[%clk 0:02:54.4]} 5. g3 {[%clk 0:02:48.7]} 5...
c5 {[%clk 0:02:54.2]} 6. Bg2 {[%clk 0:02:46.2]} 6... d6 {[%clk 0:02:54.5]} 7.
O-O {[%clk 0:02:46]} 7... Nd7 {[%clk 0:02:54.5]} 8. a4 {[%clk 0:02:46.4]} 8...
Qb6 {[%clk 0:02:50.9]} 9. axb5 {[%clk 0:02:45.2]} 9... axb5 {[%clk 0:02:50.3]}
10. Rxa8+ {[%clk 0:02:46.1]} 10... Bxa8 {[%clk 0:02:50.2]} 11. Be3 {[%clk
0:02:45.4]} 11... b4 {[%clk 0:02:46.3]} 12. Ne2 {[%clk 0:02:43.2]} 12... Ngf6
{[%clk 0:02:44.9]} 13. c3 {[%clk 0:02:39.1]} 13... bxc3 {[%clk 0:02:42]} 14.
bxc3 {[%clk 0:02:40]} 14... Be7 {[%clk 0:02:42.1]} 15. Nd2 {[%clk 0:02:29.2]}
15... O-O {[%clk 0:02:39.8]} 16. h3 {[%clk 0:02:26.8]} 16... d5 {[%clk
0:02:37.4]} 17. f4 {[%clk 0:02:21]} 17... Qb5 {[%clk 0:02:17.6]} 18. c4 {[%clk
0:02:12.7]} 18... Qb4 {[%clk 0:02:17.2]} 19. e5 {[%clk 0:02:07]} 19... Ne8
{[%clk 0:02:11.1]} 20. Qc2 {[%clk 0:01:50.8]} 20... Nc7 {[%clk 0:02:08.2]} 21.
Rb1 {[%clk 0:01:49.6]} 21... Qa5 {[%clk 0:01:56.6]} 22. Nb3 {[%clk 0:01:41.3]}
22... Qb6 {[%clk 0:01:40.6]} 23. Bf2 {[%clk 0:01:37.1]} 23... Rb8 {[%clk
0:01:33.3]} 24. Nc3 {[%clk 0:01:30.1]} 24... Qa7 {[%clk 0:01:20.3]} 25. Kh2
{[%clk 0:01:10.2]} 25... d4 {[%clk 0:01:19]} 26. Ne4 {[%clk 0:01:06.2]} 26...
Na6 {[%clk 0:01:14.9]} 27. Be1 {[%clk 0:01:02.4]} 27... Nb4 {[%clk 0:01:13.8]}
28. Bxb4 {[%clk 0:01:02.2]} 28... Rxb4 {[%clk 0:01:13.6]} 29. Ra1 {[%clk
0:00:48.9]} 29... Ra4 {[%clk 0:01:12.1]} 30. Rxa4 {[%clk 0:00:48.9]} 30... Qxa4
{[%clk 0:01:11.6]} 31. Nxd4 {[%clk 0:00:49]} 31... Qxc2 {[%clk 0:01:05.8]} 32.
Nxc2 {[%clk 0:00:49.9]} 32... Bc6 {[%clk 0:01:03.3]} 33. Kg1 {[%clk 0:00:44.9]}
33... Kf8 {[%clk 0:01:02.7]} 34. Nc3 {[%clk 0:00:44.3]} 34... Bxg2 {[%clk
0:01:00.9]} 35. Kxg2 {[%clk 0:00:45.2]} 35... Nb6 {[%clk 0:00:59.3]} 36. Kf3
{[%clk 0:00:43.6]} 36... Ke8 {[%clk 0:00:58.9]} 37. Ke4 {[%clk 0:00:43.9]} 37...
Kd7 {[%clk 0:00:58.6]} 38. Na1 {[%clk 0:00:42.5]} 38... Kc6 {[%clk 0:00:57.9]}
39. Nb3 {[%clk 0:00:42.9]} 39... g6 {[%clk 0:00:52.2]} 40. g4 {[%clk 0:00:41.9]}
40... Bh4 {[%clk 0:00:48.7]} 41. Na5+ {[%clk 0:00:38.2]} 41... Kd7 {[%clk
0:00:46]} 42. Nb7 {[%clk 0:00:37.1]} 42... Be7 {[%clk 0:00:37.8]} 43. Nb5 {[%clk
0:00:34.5]} 43... Na4 {[%clk 0:00:31.6]} 44. Na5 {[%clk 0:00:28.5]} 44... Nb2
{[%clk 0:00:27.9]} 45. Nc3 {[%clk 0:00:27.6]} 45... Kc7 {[%clk 0:00:25.6]} 46.
Nb3 {[%clk 0:00:25.8]} 46... Kd7 {[%clk 0:00:25.1]} 47. Nc1 {[%clk 0:00:18.1]}
47... Kc6 {[%clk 0:00:24.8]} 48. N1e2 {[%clk 0:00:17.6]} 48... Bh4 {[%clk
0:00:23.9]} 49. Nc1 {[%clk 0:00:16.3]} 49... Be1 {[%clk 0:00:23.6]} 50. N1e2
{[%clk 0:00:13.1]} 50... Bd2 {[%clk 0:00:23.8]} 51. h4 {[%clk 0:00:08.6]} 51...
h6 {[%clk 0:00:23.5]} 52. h5 {[%clk 0:00:08.6]} 52... g5 {[%clk 0:00:20.9]} 53.
f5 {[%clk 0:00:08.2]} 53... Kb6 {[%clk 0:00:18.8]} 54. f6 {[%clk 0:00:05.9]}
54... Kc6 {[%clk 0:00:18.1]} 55. Nb5 {[%clk 0:00:04.8]} 55... Kd7 {[%clk
0:00:13.9]} 56. Nd6 {[%clk 0:00:04.8]} 56... Na4 {[%clk 0:00:12.7]} 57. Nxf7
{[%clk 0:00:04.7]} 57... Nc3+ {[%clk 0:00:12.6]} 58. Nxc3 {[%clk 0:00:05]} 58...
Bxc3 {[%clk 0:00:12.6]} 59. Nxh6 {[%clk 0:00:04.9]} 59... Ke8 {[%clk 0:00:12.9]}
60. f7+ {[%clk 0:00:05.4]} 60... Kf8 {[%clk 0:00:12.9]} 61. Ng8 {[%clk
0:00:03.1]} 61... Kxf7 {[%clk 0:00:12.7]} 62. Nf6 {[%clk 0:00:03.5]} 62... Kg7
{[%clk 0:00:12.6]} 63. Nd7 {[%clk 0:00:03.8]} 63... Bd4 {[%clk 0:00:12.3]} 64.
Nb6 {[%clk 0:00:02.9]} 64... Kf7 {[%clk 0:00:11.4]} 65. Nc8 {[%clk 0:00:03.1]}
65... Kg7 {[%clk 0:00:11]} 66. Nd6 {[%clk 0:00:04]} 66... Kh6 {[%clk 0:00:09.3]}
67. Nf7+ {[%clk 0:00:04.2]} 67... Kg7 {[%clk 0:00:08.6]} 68. Nxg5 {[%clk
0:00:05.1]} 68... Bc3 {[%clk 0:00:07.3]} 69. Nf3 {[%clk 0:00:06]} 69... Kh6
{[%clk 0:00:06.3]} 70. d4 {[%clk 0:00:04.1]} 70... cxd4 {[%clk 0:00:05.8]} 71.
Nxd4 {[%clk 0:00:05]} 71... Bb4 {[%clk 0:00:04.9]} 72. Nxe6 {[%clk 0:00:05.3]}
72... Be7 {[%clk 0:00:05]} 73. c5 {[%clk 0:00:04.7]} 73... Kh7 {[%clk
0:00:05.4]} 74. c6 {[%clk 0:00:05.1]} 74... Kh6 {[%clk 0:00:05.8]} 75. c7 {[%clk
0:00:05.4]} 75... Kh7 {[%clk 0:00:06.2]} 76. c8=Q {[%clk 0:00:06.3]} 1-0